bitfinex-derivatives/quotes_SOLF0:USTF0_20250426
["timestamp","ask_amount","ask_price","bid_price","bid_amount"]
[1745649004380,34.74673446,151.46,151.4,5.83783446]
[1745649004572,34.74673446,151.46,151.36,22.96]
[1745649004573,34.74673446,151.46,151.41,5.83783446]
[1745649004769,6.6007,151.44,151.41,5.83783446]
[1745649006374,6.6007,151.44,151.41,12.43953446]
[1745649012979,6.6002,151.45,151.41,12.43953446]
[1745649013180,34.74673446,151.46,151.43,5.83783446]
[1745649013181,22.96,151.46,151.43,5.83783446]
[1745649013784,29.5598,151.46,151.43,5.83783446]
[1745649018787,29.5598,151.46,151.42,12.43893446]
[1745649019288,6.5998,151.46,151.42,12.43893446]
[1745649019786,6.5998,151.46,151.43,6.6008]
[1745649020892,12.43713446,151.47,151.44,12.43823446]
[1745649021386,5.83783446,151.47,151.44,5.83783446]
[1745649022290,6.5996,151.46,151.44,5.83783446]
[1745649022889,12.43713446,151.47,151.44,12.43813446]
[1745649023090,28.79783446,151.49,151.44,5.83783446]
[1745649023289,22.96,151.49,151.44,5.83783446]
[1745649023490,6.5987,151.48,151.45,6.5997]
[1745649023791,6.5987,151.48,151.45,12.43753446]
[1745649028095,29.5585,151.49,151.45,12.43753446]
[1745649029095,35.39633446,151.49,151.45,12.43753446]
[1745649029292,6.5988,151.48,151.45,6.5997]
[1745649029796,6.5988,151.48,151.45,12.43753446]
[1745649030791,28.79783446,151.49,151.45,12.43753446]
[1745649030996,35.39623446,151.49,151.46,6.5995]
[1745649031197,6.5984,151.49,151.46,6.5995]
[1745649031393,6.5977,151.51,151.47,12.43673446]
[1745649032295,12.43553446,151.51,151.47,12.43673446]
[1745649033398,6.5979,151.5,151.47,12.43673446]
[1745649036905,6.5979,151.5,151.47,5.83783446]
[1745649037203,12.43573446,151.5,151.46,12.43733446]
[1745649037407,6.5984,151.49,151.46,6.5995]
[1745649039405,6.5984,151.49,151.45,12.43773446]
[1745649040706,6.5984,151.49,151.46,5.83783446]
[1745649040903,6.5984,151.49,151.45,12.43773446]
[1745649042008,6.5984,151.49,151.46,5.83783446]
[1745649042402,5.83783446,151.5,151.45,5.83783446]
[1745649042703,5.83783446,151.47,151.44,29.5603]
[1745649042895,5.83783446,151.48,151.44,29.5603]
[1745649043104,6.5994,151.47,151.44,29.5603]
[1745649044406,12.43673446,151.48,151.44,35.39813446]
[1745649044603,5.83783446,151.49,151.45,5.83783446]
[1745649045305,5.83783446,151.5,151.45,5.83783446]
[1745649045605,6.5985,151.49,151.46,6.5996]
[1745649045907,5.83783446,151.5,151.45,5.83783446]
[1745649046106,5.83783446,151.49,151.45,5.83783446]
[1745649046507,12.43643446,151.49,151.45,12.43753446]
[1745649047208,12.43643446,151.49,151.46,6.5994]
[1745649050110,12.43583446,151.5,151.47,6.5991]
[1745649050709,5.83783446,151.5,151.47,6.5991]
[1745649051309,12.43573446,151.5,151.47,6.5991]
[1745649053912,12.43613446,151.49,151.46,6.5994]
[1745649054910,12.43653446,151.48,151.45,6.5998]
[1745649055310,5.83783446,151.49,151.44,28.79783446]
[1745649055613,5.83783446,151.49,151.46,6.5993]
[1745649055910,5.83783446,151.5,151.46,6.5993]
[1745649057314,6.5983,151.49,151.46,6.5993]
[1745649058812,6.5987,151.48,151.45,12.43773446]
[1745649059710,12.43653446,151.48,151.45,12.43773446]
[1745649060203,5.83783446,151.48,151.45,12.43773446]
[1745649060407,12.43623446,151.49,151.45,12.43773446]
[1745649060714,12.43623446,151.49,151.46,6.5996]
[1745649062413,6.5984,151.49,151.46,6.5996]
[1745649063015,6.5988,151.48,151.45,12.43783446]
[1745649063214,6.5988,151.48,151.45,6.6]
[1745649063511,5.83783446,151.5,151.44,28.79783446]
[1745649063812,6.5984,151.49,151.46,6.5995]
[1745649066915,5.83783446,151.5,151.44,28.79783446]
[1745649067213,5.83783446,151.48,151.42,5.83783446]
[1745649067414,5.83783446,151.46,151.42,5.83783446]
[1745649068115,12.43813446,151.45,151.42,6.6012]
[1745649069616,6.6005,151.44,151.41,35.37943446]
[1745649070216,6.6005,151.44,151.41,22.94]
[1745649070217,6.6012,151.43,151.41,22.94]
[1745649070513,6.6012,151.43,151.39,5.83783446]
[1745649072317,6.6012,151.43,151.4,6.6021]
[1745649072614,6.6012,151.43,151.39,5.83783446]
[1745649072816,12.43903446,151.43,151.4,6.6022]
[1745649073014,6.6012,151.43,151.4,12.44003446]
[1745649073810,12.43843446,151.44,151.4,12.44003446]
[1745649075215,12.43843446,151.44,151.41,6.6017]
[1745649075416,6.6006,151.44,151.41,6.6017]
[1745649075910,6.6006,151.44,151.41,12.43953446]
[1745649079118,6.6002,151.45,151.41,12.43953446]
[1745649079716,6.6002,151.45,151.42,5.83783446]
[1745649083218,10.501,151.46,151.43,5.83783446]
[1745649083518,2.0685,151.47,151.44,5.83783446]
[1745649083823,8.6679,151.47,151.43,6.6007]
[1745649084018,2.0685,151.47,151.43,12.43853446]
[1745649085319,6.5996,151.46,151.43,12.43853446]
[1745649086420,8.6678,151.47,151.43,12.43853446]
[1745649087320,6.5996,151.46,151.43,12.43853446]
[1745649091125,6.5996,151.46,151.43,5.83783446]
[1745649091418,2.0685,151.47,151.43,5.83783446]
[1745649091624,5.83783446,151.46,151.41,5.83783446]
[1745649091825,5.83783446,151.45,151.41,5.83783446]
[1745649092021,5.83783446,151.46,151.41,5.83783446]
[1745649092226,6.6008,151.44,151.42,5.83783446]
[1745649093425,6.6009,151.43,151.42,5.83783446]
[1745649093727,5.83783446,151.45,151.4,5.83783446]
[1745649093922,6.6012,151.43,151.4,5.83783446]
[1745649094727,6.6006,151.44,151.41,5.83783446]
[1745649094928,9.83183446,151.47,151.43,5.83783446]
[1745649095126,6.5997,151.46,151.43,5.83783446]
[1745649095726,9.83183446,151.47,151.43,5.83783446]
[1745649096234,6.5997,151.46,151.43,5.83783446]
[1745649096435,3.994,151.47,151.44,5.83783446]
[1745649096730,28.77783446,151.48,151.44,5.83783446]
[1745649096935,6.5994,151.47,151.44,5.83783446]
[1745649100436,6.5996,151.46,151.44,5.83783446]
[1745649100740,28.77783446,151.48,151.44,5.83783446]
[1745649101541,6.5993,151.47,151.44,5.83783446]
[1745649101737,22.94,151.48,151.46,5.83783446]
[1745649102038,7.72553446,151.5,151.46,5.83783446]
[1745649102239,6.5988,151.48,151.46,5.83783446]
[1745649102537,6.5988,151.48,151.45,12.43753446]
[1745649103640,6.5988,151.48,151.45,5.83783446]
[1745649104538,6.5988,151.48,151.46,5.83783446]
[1745649105242,6.5988,151.48,151.45,12.43773446]
[1745649107744,6.5992,151.47,151.45,5.83783446]
[1745649107938,7.72553446,151.5,151.45,5.83783446]
[1745649108245,6.5989,151.48,151.45,5.83783446]
[1745649108444,5.83783446,151.47,151.43,5.83783446]
[1745649108744,5.83783446,151.47,151.42,5.83783446]
[1745649108944,6.5999,151.46,151.43,12.43843446]
[1745649109246,6.5999,151.46,151.44,5.83783446]
[1745649109446,6.5992,151.47,151.44,5.83783446]
[1745649109643,5.83783446,151.49,151.45,5.83783446]
[1745649109839,7.72553446,151.5,151.45,5.83783446]
[1745649110039,6.5986,151.49,151.45,12.43753446]
[1745649110344,5.83783446,151.5,151.45,12.43753446]
[1745649110744,6.5984,151.49,151.46,5.83783446]
[1745649110940,5.83783446,151.5,151.46,5.83783446]
[1745649111844,5.83783446,151.5,151.45,12.43753446]
[1745649112247,6.5988,151.48,151.45,12.43753446]
[1745649112947,6.5988,151.48,151.44,12.43813446]
[1745649113139,6.5988,151.48,151.45,5.83783446]
[1745649113946,6.5988,151.48,151.45,12.43773446]
[1745649114245,6.5988,151.48,151.46,5.83783446]
[1745649115748,6.5988,151.48,151.45,5.83783446]
[1745649115947,6.5992,151.47,151.45,5.83783446]
[1745649117547,6.5988,151.48,151.45,5.83783446]
[1745649119048,6.5988,151.48,151.45,12.43783446]
[1745649124453,6.5988,151.48,151.45,5.83783446]
[1745649124854,6.5993,151.47,151.45,5.83783446]
[1745649125754,6.5989,151.48,151.45,12.43783446]
[1745649133862,6.5989,151.48,151.45,5.83783446]
[1745649134561,6.5992,151.47,151.45,5.83783446]
[1745649135264,6.5996,151.46,151.43,28.77783446]
[1745649135462,5.83783446,151.48,151.43,5.83783446]
[1745649135862,6.6004,151.45,151.42,5.83783446]
[1745649136360,6.5997,151.46,151.43,5.83783446]
[1745649136559,6.5997,151.46,151.44,5.83783446]
[1745649136759,5.83783446,151.49,151.45,5.83783446]
[1745649136959,6.5988,151.48,151.46,5.83783446]
[1745649141366,6.5991,151.47,151.46,5.83783446]
[1745649141567,6.5991,151.47,151.44,12.43803446]
[1745649142365,6.5991,151.47,151.45,5.83783446]
[1745649143764,6.5989,151.48,151.45,5.83783446]
[1745649144067,28.79783446,151.51,151.45,5.83783446]
[1745649144265,5.83783446,151.49,151.45,5.83783446]
[1745649144862,6.599,151.48,151.45,5.83783446]
[1745649145770,6.599,151.48,151.45,12.43773446]
[1745649146170,6.599,151.48,151.45,5.83783446]
[1745649147569,6.5991,151.47,151.45,5.83783446]
[1745649149376,6.5989,151.48,151.45,5.83783446]
[1745649150375,12.43623446,151.49,151.45,12.43753446]
[1745649150576,6.5984,151.49,151.45,12.43753446]
[1745649154077,5.83783446,151.5,151.45,5.83783446]
[1745649154576,6.5988,151.48,151.45,5.83783446]
[1745649155279,6.5984,151.49,151.45,12.43783446]
[1745649158176,35.39543446,151.51,151.47,6.599]
[1745649158378,29.5576,151.51,151.47,12.43683446]
[1745649158780,22.96,151.51,151.48,12.43653446]
[1745649159181,6.5971,151.52,151.48,12.43653446]
[1745649160279,6.5975,151.51,151.48,6.5987]
[1745649161479,6.5975,151.51,151.47,12.43683446]
[1745649161986,12.43493446,151.52,151.47,12.43683446]
[1745649163882,12.43493446,151.52,151.48,6.5987]
[1745649165283,12.43493446,151.52,151.47,12.43683446]
[1745649165984,6.5975,151.51,151.47,12.43683446]
[1745649170688,6.5975,151.51,151.48,6.5986]
[1745649172287,12.43493446,151.52,151.48,6.5986]
[1745649172692,2.03,151.54,151.51,5.83783446]
[1745649172888,6.5958,151.55,151.51,5.83783446]
[1745649173192,6.5958,151.55,151.51,12.43513446]
[1745649173791,6.5958,151.55,151.51,6.5973]
[1745649174094,35.37313446,151.56,151.52,5.83783446]
[1745649174890,29.5353,151.56,151.52,5.83783446]
[1745649175089,22.94,151.56,151.52,5.83783446]
[1745649175694,6.596,151.55,151.52,5.83783446]
[1745649177497,6.596,151.55,151.53,5.83783446]
[1745649178698,6.5954,151.56,151.54,5.83783446]
[1745649182000,6.5957,151.55,151.54,5.83783446]
[1745649184001,6.5954,151.56,151.54,5.83783446]
[1745649187998,6.5954,151.56,151.55,5.83783446]
[1745649188304,6.5954,151.56,151.54,5.83783446]
[1745649188495,6.5957,151.55,151.54,5.83783446]
[1745649188902,6.5954,151.56,151.54,5.83783446]
[1745649192507,6.5954,151.56,151.55,5.83783446]
[1745649193005,28.75783446,151.59,151.55,5.83783446]
[1745649193596,6.5951,151.57,151.55,5.83783446]
[1745649194906,22.92,151.59,151.56,5.83783446]
[1745649195103,22.92,151.59,151.57,5.83783446]
[1745649195405,6.5948,151.58,151.57,5.83783446]
[1745649196002,6.5939,151.59,151.57,5.83783446]
[1745649197610,6.5939,151.59,151.58,5.83783446]
[1745649198205,6.5948,151.58,151.57,5.83783446]
[1745649200409,6.5948,151.57,151.56,5.83783446]
[1745649200610,5.83783446,151.59,151.55,5.83783446]
[1745649201710,6.5952,151.56,151.55,5.83783446]
[1745649202910,6.595,151.57,151.55,5.83783446]
[1745649203611,6.595,151.57,151.56,5.83783446]
[1745649203909,6.595,151.57,151.55,5.83783446]
[1745649204109,6.595,151.57,151.56,5.83783446]
[1745649204408,6.595,151.57,151.55,5.83783446]
[1745649205706,6.5952,151.56,151.55,5.83783446]
[1745649205911,5.83783446,151.58,151.54,5.83783446]
[1745649206113,5.83783446,151.58,151.53,5.83783446]
[1745649206312,6.5959,151.55,151.53,5.83783446]
[1745649206715,5.83783446,151.57,151.53,5.83783446]
[1745649206907,6.5959,151.55,151.53,5.83783446]
[1745649207214,6.5959,151.55,151.52,5.83783446]
[1745649207514,6.5959,151.55,151.53,5.83783446]
[1745649207714,6.5959,151.55,151.54,5.83783446]
[1745649209713,6.5953,151.56,151.54,5.83783446]
[1745649214420,6.5957,151.55,151.54,5.83783446]
[1745649215820,5.83783446,151.56,151.51,28.75783446]
[1745649216321,5.83783446,151.56,151.51,5.83783446]
[1745649217618,6.5973,151.52,151.49,5.83783446]
[1745649219416,5.83783446,151.54,151.49,5.83783446]
[1745649219617,5.83783446,151.52,151.49,5.83783446]
[1745649219818,5.83783446,151.52,151.48,5.83783446]
[1745649219819,6.5978,151.5,151.48,5.83783446]
[1745649220519,6.5978,151.5,151.49,5.83783446]
[1745649221821,6.5975,151.51,151.49,5.83783446]
[1745649222722,5.83783446,151.53,151.49,12.43603446]
[1745649222723,6.5971,151.52,151.49,12.43603446]
[1745649222921,6.5971,151.52,151.51,5.83783446]
[1745649225422,6.5974,151.51,151.49,5.83783446]
[1745649225622,5.83783446,151.53,151.48,5.83783446]
[1745649226422,28.75783446,151.54,151.49,5.83783446]
[1745649226626,6.5977,151.51,151.49,5.83783446]
[1745649227524,6.5971,151.52,151.5,5.83783446]
[1745649227725,22.92,151.54,151.51,5.83783446]
[1745649227925,22.92,151.54,151.52,5.83783446]
[1745649228226,22.92,151.57,151.53,5.83783446]
[1745649228429,22.92,151.57,151.49,22.92]
[1745649228430,22.92,151.57,151.54,5.83783446]
[1745649228727,6.5955,151.56,151.54,5.83783446]
[1745649232231,29.5149,151.57,151.54,5.83783446]
[1745649232729,29.5149,151.57,151.55,5.83783446]
[1745649233781,29.5149,151.57,151.54,5.83783446]
[1745649234168,6.5952,151.56,151.54,5.83783446]
[1745649240465,6.13131446,151.59,151.55,5.83783446]
[1745649241068,6.5946,151.58,151.55,5.83783446]
[1745649241573,6.5946,151.58,151.55,12.43343446]
[1745649242269,6.13131446,151.59,151.52,5.83783446]
[1745649242270,5.83783446,151.56,151.52,5.83783446]
[1745649242464,5.83783446,151.55,151.51,5.83783446]
[1745649242765,5.83783446,151.56,151.51,5.83783446]
[1745649243067,6.5962,151.54,151.51,5.83783446]
[1745649244267,6.5962,151.54,151.51,12.43523446]
[1745649244670,6.5962,151.54,151.52,5.83783446]
[1745649244892,5.83783446,151.56,151.52,12.43453446]
[1745649245072,5.83783446,151.57,151.53,5.83783446]
[1745649245766,6.5953,151.56,151.53,5.83783446]
[1745649248165,6.5953,151.56,151.53,12.43433446]
[1745649249354,12.43313446,151.56,151.53,6.5965]
[1745649249652,0.29348,151.59,151.55,5.83783446]
[1745649249850,0.29348,151.59,151.56,5.83783446]
[1745649250056,0.29348,151.59,151.57,12.43253446]
[1745649251052,39.30003446,151.61,151.57,12.43253446]
[1745649251853,6.5936,151.6,151.57,5.83783446]
[1745649252154,26.869,151.61,151.57,5.83783446]
[1745649252455,32.70683446,151.61,151.57,5.83783446]
[1745649252854,6.5939,151.59,151.57,5.83783446]
[1745649253054,5.83783446,151.59,151.56,5.83783446]
[1745649253253,5.83783446,151.59,151.55,5.83783446]
[1745649253446,6.5951,151.57,151.54,28.75783446]
[1745649253652,5.83783446,151.57,151.52,5.83783446]
[1745649254000,12.43373446,151.55,151.51,12.43493446]
[1745649254152,12.43373446,151.55,151.51,6.5971]
[1745649254354,12.43373446,151.55,151.51,5.83783446]
[1745649254954,6.5959,151.55,151.51,5.83783446]
[1745649255255,6.5959,151.55,151.52,6.597]
[1745649255654,6.5959,151.55,151.51,5.83783446]
[1745649257255,6.5959,151.55,151.52,6.5969]
[1745649259761,22.92,151.57,151.52,12.43473446]
[1745649259953,5.83783446,151.56,151.53,5.83783446]
[1745649260154,5.83783446,151.56,151.52,12.43473446]
[1745649261258,6.5957,151.55,151.52,12.43473446]
[1745649261460,6.5957,151.55,151.53,5.83783446]
[1745649262160,6.5954,151.56,151.53,5.83783446]
[1745649262656,6.5954,151.56,151.53,12.43433446]
[1745649263362,6.5958,151.55,151.53,5.83783446]
[1745649263559,6.5958,151.55,151.52,12.43463446]
[1745649268168,6.5954,151.56,151.52,12.43463446]
[1745649268369,6.5954,151.56,151.53,5.83783446]
[1745649268764,155.72148235,151.73,151.55,5.83783446]
[1745649268963,503.91783446,151.64,151.58,5.83783446]
[1745649269160,22.92,151.64,151.6,5.83783446]
[1745649269369,6.5926,151.62,151.59,5.83783446]
[1745649269863,6.5926,151.62,151.58,5.83783446]
[1745649270468,6.5931,151.61,151.57,5.83783446]
[1745649271265,5.83783446,151.6,151.55,5.83783446]
[1745649271466,5.83783446,151.59,151.55,5.83783446]
[1745649271867,6.5946,151.58,151.55,5.83783446]
[1745649276471,22.92,151.6,151.56,5.83783446]
[1745649276673,22.92,151.6,151.57,5.83783446]
[1745649276877,6.5942,151.59,151.56,5.83783446]
[1745649277469,5.83783446,151.62,151.58,5.83783446]
[1745649277674,23.23039,151.63,151.59,5.83783446]
[1745649278673,6.5927,151.62,151.6,5.83783446]
[1745649280677,0.31039,151.63,151.62,6.5926]
[1745649280878,2.0487,151.7,151.62,5.83783446]
[1745649281097,5.83783446,151.71,151.66,5.83783446]
[1745649281374,28.75783446,151.72,151.68,5.83783446]
[1745649281772,22.92,151.72,151.68,5.83783446]
[1745649282178,3.1826437,151.76,151.7,5.83783446]
[1745649282379,5.83783446,151.75,151.71,5.83783446]
[1745649282579,5.83783446,151.75,151.7,5.83783446]
[1745649283081,5.83783446,151.74,151.7,5.83783446]
[1745649284581,5.83783446,151.74,151.69,5.83783446]
[1745649285322,12.42553446,151.74,151.69,5.83783446]
[1745649285478,5.83783446,151.74,151.69,5.83783446]
[1745649285780,5.83783446,151.73,151.69,5.83783446]
[1745649285980,12.42603446,151.73,151.69,5.83783446]
[1745649286178,5.83783446,151.73,151.69,5.83783446]
[1745649286475,5.83783446,151.73,151.68,5.83783446]
[1745649286677,6.5884,151.72,151.68,5.83783446]
[1745649287282,12.42583446,151.73,151.68,5.83783446]
[1745649287579,12.42583446,151.73,151.69,5.83783446]
[1745649287879,6.5883,151.72,151.69,5.83783446]
[1745649289606,6.5887,151.71,151.69,5.83783446]
[1745649290181,5.83783446,151.71,151.67,5.83783446]
[1745649290384,5.83783446,151.71,151.66,5.83783446]
[1745649290582,6.5896,151.69,151.66,5.83783446]
[1745649290978,5.83783446,151.7,151.66,5.83783446]
[1745649291378,5.83783446,151.7,151.65,5.83783446]
[1745649291581,5.83783446,151.69,151.65,5.83783446]
[1745649291880,6.5903,151.68,151.65,5.83783446]
[1745649293786,6.5906,151.67,151.65,5.83783446]
[1745649296190,6.5909,151.66,151.65,5.83783446]
[1745649296493,5.83783446,151.68,151.63,5.83783446]
[1745649296694,5.83783446,151.67,151.62,5.83783446]
[1745649297492,6.5918,151.64,151.62,5.83783446]
[1745649299296,6.5914,151.65,151.62,5.83783446]
[1745649299698,6.5914,151.65,151.63,5.83783446]
[1745649300599,22.94,151.68,151.64,5.83783446]
[1745649300795,22.94,151.68,151.65,5.83783446]
[1745649300999,5.83783446,151.69,151.65,5.83783446]
[1745649301402,6.5903,151.68,151.65,5.83783446]
[1745649302303,12.42753446,151.69,151.65,12.42893446]
[1745649302702,5.83783446,151.69,151.65,12.42893446]
[1745649303002,6.5903,151.68,151.65,5.83783446]
[1745649303202,6.5903,151.68,151.64,12.42943446]
[1745649305300,6.5897,151.69,151.67,5.83783446]
[1745649305701,6.5897,151.69,151.66,5.83783446]
[1745649306504,6.5897,151.69,151.65,5.83783446]
[1745649306804,6.5897,151.69,151.65,12.42883446]
[1745649309105,6.5897,151.69,151.62,3.9779]
[1745649309106,6.5897,151.69,151.67,5.83783446]
[1745649309501,6.5897,151.69,151.66,5.83783446]
[1745649311206,6.59,151.68,151.66,5.83783446]
[1745649311419,6.59,151.68,151.65,12.42883446]
[1745649311907,6.5905,151.67,151.64,5.83783446]
[1745649312207,5.83783446,151.68,151.64,5.83783446]
[1745649312509,12.42813446,151.68,151.65,6.5913]
[1745649312811,12.42813446,151.68,151.64,5.83783446]
[1745649313009,6.5905,151.67,151.64,12.42943446]
[1745649316310,6.591,151.66,151.63,6.5921]
[1745649316705,12.42883446,151.66,151.63,6.5921]
[1745649317411,5.83783446,151.66,151.62,12.43023446]
[1745649318215,12.42903446,151.66,151.63,6.5921]
[1745649318712,6.5912,151.66,151.63,6.5921]
[1745649320813,6.5912,151.66,151.62,12.43023446]
[1745649321017,6.5914,151.65,151.62,12.43023446]
[1745649321517,6.5911,151.66,151.62,12.43023446]
[1745649322419,6.5911,151.66,151.63,6.5921]
[1745649322614,12.42843446,151.67,151.63,6.5921]
[1745649322817,5.83783446,151.68,151.63,6.5921]
[1745649323016,5.83783446,151.68,151.63,12.42993446]
[1745649323523,6.5909,151.66,151.63,12.42993446]
[1745649323818,5.83783446,151.68,151.63,12.42993446]
[1745649324218,6.5908,151.67,151.63,12.42993446]
[1745649324518,5.83783446,151.68,151.63,12.42993446]
[1745649326218,6.5909,151.66,151.63,12.42993446]
[1745649326723,6.5909,151.66,151.63,5.83783446]
[1745649327821,12.42843446,151.67,151.63,12.42973446]
[1745649328323,6.5909,151.66,151.63,12.42973446]
[1745649328521,5.83783446,151.67,151.63,5.83783446]
[1745649328763,5.83783446,151.65,151.61,59.43178]
[1745649329123,5.83783446,151.64,151.61,59.43178]
[1745649329422,12.42993446,151.64,151.61,36.49178]
[1745649329927,5.83783446,151.66,151.61,42.32961446]
[1745649330118,5.83783446,151.68,151.61,36.49178]
[1745649330318,26.823,151.7,151.67,5.83783446]
[1745649330521,3.9668,151.75,151.68,5.83783446]
[1745649330824,5.83783446,151.72,151.68,5.83783446]
[1745649331218,6.5888,151.71,151.68,5.83783446]
[1745649331421,6.5888,151.71,151.67,5.83783446]
[1745649331725,12.42633446,151.72,151.68,6.59]
[1745649331938,5.83783446,151.72,151.68,6.59]
[1745649332116,5.83783446,151.72,151.67,5.83783446]
[1745649332320,6.589,151.71,151.67,12.42813446]
[1745649333225,6.589,151.71,151.68,6.5898]
[1745649333624,12.42623446,151.72,151.68,6.5898]
[1745649334120,6.5888,151.71,151.68,6.5898]
[1745649334326,12.42663446,151.71,151.67,12.42813446]
[1745649334725,12.42663446,151.71,151.67,5.83783446]
[1745649335427,6.5888,151.71,151.68,5.83783446]
[1745649336424,6.5892,151.7,151.68,5.83783446]
[1745649337727,6.5888,151.71,151.69,5.83783446]
[1745649338323,6.5891,151.7,151.69,5.83783446]
[1745649338830,22.9,151.73,151.69,5.83783446]
[1745649339127,22.9,151.73,151.67,6.5903]
[1745649339128,11.78823446,151.75,151.7,5.83783446]
[1745649339330,22.9,151.76,151.73,5.83783446]
[1745649339523,22.9,151.76,151.74,5.83783446]
[1745649339723,22.9,151.76,151.75,5.83783446]
[1745649339919,22.9,151.76,151.73,5.83783446]
[1745649340122,6.5874,151.75,151.72,5.83783446]
[1745649341129,6.5867,151.76,151.72,5.83783446]
[1745649341630,6.5867,151.76,151.72,12.42603446]
[1745649343330,12.42393446,151.77,151.73,12.42553446]
[1745649343529,22.9,151.79,151.75,5.83783446]
[1745649344333,6.586,151.78,151.75,5.83783446]
[1745649345435,6.5861,151.77,151.75,5.83783446]
[1745649345635,6.5861,151.77,151.74,5.83783446]
[1745649345873,22.9,151.79,151.75,5.83783446]
[1745649346130,29.4855,151.79,151.75,12.42443446]
[1745649346938,6.585,151.8,151.76,6.5865]
[1745649347127,34.62543446,151.82,151.77,5.83783446]
[1745649347735,5.83783446,151.81,151.76,12.42423446]
[1745649348035,5.83783446,151.81,151.77,5.83783446]
[1745649348225,6.5851,151.8,151.77,5.83783446]
[1745649348734,41.20973446,151.82,151.77,5.83783446]
[1745649349069,31.5307,151.82,151.79,5.83783446]
[1745649349239,29.4843,151.82,151.8,5.83783446]
[1745649349537,6.5836,151.83,151.8,5.83783446]
[1745649349730,28.71783446,151.85,151.8,5.83783446]
[1745649349927,28.71783446,151.85,151.81,5.83783446]
[1745649350838,22.88,151.85,151.81,5.83783446]
[1745649351039,28.71783446,151.85,151.81,5.83783446]
[1745649351340,6.5833,151.84,151.81,5.83783446]
[1745649351739,28.71783446,151.85,151.82,5.83783446]
[1745649352039,28.71783446,151.88,151.83,5.83783446]
[1745649352267,35.29943446,151.88,151.84,12.42083446]
[1745649352442,35.29943446,151.88,151.84,5.83783446]
[1745649352935,29.4616,151.88,151.84,5.83783446]
[1745649353236,6.5818,151.87,151.85,5.83783446]
[1745649353541,6.5818,151.87,151.84,5.83783446]
[1745649354039,22.88,151.88,151.84,5.83783446]
[1745649354339,22.88,151.88,151.85,5.83783446]
[1745649354638,29.4616,151.88,151.85,5.83783446]
[1745649354936,5.83783446,151.87,151.83,5.83783446]
[1745649355138,12.42103446,151.84,151.81,5.83783446]
[1745649355337,12.42103446,151.84,151.8,5.83783446]
[1745649355743,6.5835,151.83,151.8,5.83783446]
[1745649356662,6.5832,151.84,151.81,5.83783446]
[1745649357343,1.9851,151.87,151.83,5.83783446]
[1745649357534,1.9851,151.87,151.84,5.83783446]
[1745649357734,8.567,151.87,151.84,12.42083446]
[1745649357939,22.88,151.88,151.86,5.83783446]
[1745649358144,1.9356,151.89,151.86,5.83783446]
[1745649358947,8.5168,151.89,151.86,5.83783446]
[1745649359746,23.18,151.91,151.87,5.83783446]
[1745649360248,6.5808,151.9,151.87,5.83783446]
[1745649360850,29.7602,151.91,151.87,12.41953446]
[1745649361049,29.7602,151.91,151.88,5.83783446]
[1745649361348,29.01783446,151.91,151.87,5.83783446]
[1745649361748,6.5808,151.9,151.87,12.41953446]
[1745649361946,6.5808,151.9,151.87,5.83783446]
[1745649362750,35.59803446,151.91,151.87,12.41953446]
[1745649362949,5.83783446,151.91,151.87,12.41953446]
[1745649363744,7.87163446,151.92,151.88,12.41883446]
[1745649363949,2.0338,151.92,151.89,5.83783446]
[1745649364160,5.83783446,151.94,151.9,5.83783446]
[1745649364450,1.14590536,151.99,151.87,23.16]
[1745649364650,23.16,152.0,151.94,5.83783446]
[1745649364851,5.83783446,151.98,151.94,5.83783446]
[1745649365151,5.83783446,151.97,151.93,5.83783446]
[1745649365350,23.16,152.0,151.93,5.83783446]
[1745649365550,5.83783446,151.98,151.93,5.83783446]
[1745649365748,5.83783446,151.97,151.93,5.83783446]
[1745649365957,6.577,151.98,151.94,5.83783446]
[1745649366154,6.577,151.98,151.95,5.83783446]
[1745649366356,5.83783446,151.98,151.94,5.83783446]
[1745649366559,6.5778,151.97,151.93,5.83783446]
[1745649366758,6.5778,151.97,151.94,5.83783446]
[1745649367259,6.5779,151.96,151.94,5.83783446]
[1745649367857,6.5779,151.96,151.91,29.7399]
[1745649367858,5.83783446,151.96,151.92,5.83783446]
[1745649368257,2.0031,151.97,151.92,5.83783446]
[1745649368458,7.84093446,151.97,151.92,5.83783446]
[1745649368758,6.5787,151.95,151.92,5.83783446]
[1745649369257,12.41583446,151.96,151.92,5.83783446]
[1745649369456,5.83783446,151.96,151.93,5.83783446]